Cogmind - Beta 16.1 @@@ ROGUE MODE // 2026.01.19 @ 18:14:57 Player: H3-MLN Result: Destroyed by Y-54 Guardian with Gatling Laser Performance ------------- Evolutions (0) 0 Regions Visited (4) 800 Robots Destroyed (15) 75 Value Destroyed (423) 423 Prototype IDs (14) 280 Alien Tech Used (0) 0 Bonus (47) 47 TOTAL SCORE: 1625 Bonus ------- Follower Combat Kills 171 Friendly Fire -124 Cogmind --------- Core Integrity 0/250 Matter 234/300 Energy 185/200 System Corruption 1% Temperature Cool (6) Movement Rolling (130) Ox2 Location -7/Recycling Parts ------- > --- POWER (1) -------- Subdweller Power Source > --- PROPULSION (2) --- Subdweller Monowheel Subdweller Monowheel > --- UTILITY (2) ------ Disposable Heat Sink (fused) Huge Storage Unit > --- WEAPON (2) ------- Battle Cannon Subdweller Shrapnel Launcher > --- INVENTORY (25) --- Light Ion Engine Subdweller Power Source Subdweller Power Source Subdweller Monowheel Subdweller Monowheel Subdweller Optics Splice Drone Bay (6/6) Subdweller Laser Subdweller Laser Subdweller Laser Subdweller Laser Subdweller Laser Battle Rifle Subdweller Machine Gun Battle Cannon Multitool Shrapnel Trap Peak State ------------ > --- POWER ------------ Light Ion Engine > --- PROPULSION ------- Light Treads Subdweller Monowheel > --- UTILITY ---------- Huge Storage Unit Subdweller Optics > --- WEAPON ----------- Subdweller Laser Makeshift Laser > --- INVENTORY -------- Subdweller Power Source Subdweller Power Source Subdweller Power Source Wheel Subdweller Monowheel Subdweller Monowheel Subdweller Monowheel Subdweller Monowheel Disposable Heat Sink Disposable Heat Sink Medium Matter Pod Scrap Shield Tower Shield Splice Drone Bay Subdweller Laser Battle Rifle Subdweller Machine Gun Subdweller Shrapnel Launcher Multitool Shrapnel Trap Botcube [Rating: 20] Favorites ----------- Power Subdweller Power Source Engine Subdweller Power Source Propulsion Subdweller Monowheel Treads Light Treads Wheel Subdweller Monowheel Utility Huge Storage Unit Device Disposable Heat Sink Storage Huge Storage Unit Protection Scrap Shield Weapon Battle Cannon Energy Gun Subdweller Laser Ballistic Gun Battle Rifle Ballistic Cannon Battle Cannon Launcher Subdweller Shrapnel Launcher Special Weapon Mining Laser Build | -11 -10 -10 -10 -7 ------- Run | Yrd Mat Min Sub Rec Slots Evolved . | . . . . . Power . | . . . . . Propulsion . | . . . . . Utility . | . . . . . Weapon . | . . . . . Parts Attached 39 | 6 3 9 21 . Power 4 | 1 . 1 2 . Engine 4 | 1 . 1 2 . Core . | . . . . . Reactor . | . . . . . Propulsion 8 | 2 . 2 4 . Treads 2 | 1 . 1 . . Leg . | . . . . . Wheel 6 | 1 . 1 4 . Hover . | . . . . . Flight . | . . . . . Utility 11 | 1 3 2 5 . Device 4 | . . 1 3 . Storage 4 | 1 2 . 1 . Processor . | . . . . . Hackware . | . . . . . Protection 3 | . 1 1 1 . Artifact . | . . . . . Weapon 16 | 2 . 4 10 . Energy Gun 8 | 1 . 1 6 . Energy Cannon . | . . . . . Ballistic Gun 4 | 1 . 2 1 . Ballistic Cannon 2 | . . . 2 . Launcher 1 | . . . 1 . Special Weapon 1 | . . 1 . . Impact Weapon . | . . . . . Slashing Weapon . | . . . . . Piercing Weapon . | . . . . . Special Melee Weapon . | . . . . . Unidentified Prototypes 1 | . . 1 . . Parts Lost 11 | . . 8 3 . Power 2 | . . 1 1 . Propulsion 3 | . . 1 2 . Utility 2 | . . 2 . . Weapon 4 | . . 4 . . Highest Loss Streak 4 | . . 4 2 . To Critical Strikes . | . . . . . Average Backups 9 | 2 6 7 8 16 Power 1 | . 1 . 1 3 Propulsion 1 | 1 2 1 1 2 Utility 2 | . 2 3 2 2 Weapon 3 | . 1 1 2 8 Tool/Special . | . . . . . Unused Backups 24 | . 1 1 15 7 Power 5 | . 1 . 2 2 Propulsion 6 | . . . 6 . Utility 7 | . . . 6 1 Weapon 5 | . . 1 1 3 Tool/Special 1 | . . . . 1 Average Slot Usage (%) 95 | . 95 98 94 100 Engine 13 | . 14 13 13 14 Treads 7 | . 14 15 7 . Wheel 20 | . 14 12 20 28 Device 9 | . . 2 10 14 Storage 13 | . 16 18 12 14 Protection 2 | . 7 6 1 . Energy Gun 10 | . 14 6 12 1 Ballistic Gun 7 | . 14 14 6 . Ballistic Cannon 8 | . . . 6 26 Peak Build Rating 20 | 7 8 15 20 16 Average Rating 13 | 5 7 9 14 16 On Entrance 9 | . 7 8 15 16 Avg Prop Armor Cover (%) 9 | 14 10 10 8 . Naked Turns . | . . . . . Heaviest Build 97 | 14 34 35 97 93 Greatest Support 40 | 20 16 20 40 40 Greatest Overweight (x) 9 | . 2 3 9 2 Average Overweight (x) 3 | . . 1 3 2 Largest Inventory Capacity 25 | 8 15 15 25 25 Average Capacity 20 | 7 13 15 21 25 Most Carried 23 | 5 10 10 23 17 Average Carried 10 | 3 7 8 10 17 Final Capacity 25 | 8 15 15 25 25 Final Carried 17 | 5 10 10 17 17 Class Distribution -------------------- 70% | Mutant 25% | Scavenger-Mutant 3% | Derelict-Mutant Dominant Class ---------------- Mutant | -10/Materials Mutant | -10/Mines Mutant | -10/Subcaves Mutant | -7/Recycling Resources | -11 -10 -10 -10 -7 ----------- Run | Yrd Mat Min Sub Rec Matter Collected 1100 | 205 . 427 468 . Remotely . | . . . . . Salvage Created 700 | . . 378 322 . Parts 36 | . . 14 22 . Haulers Intercepted . | . . . . . Recyclers Shooed 1 | . . 1 . . Parts Field Recycled . | . . . . . Retrieved Matter . | . . . . . Parts Self-Destructed 10 | . . . 10 . Prevented . | . . . . . Parts Restored . | . . . . . Kills | -11 -10 -10 -10 -7 ------- Run | Yrd Mat Min Sub Rec Combat Hostiles Destroyed 20 | . . 13 7 . Guns 16 | . . 13 3 . Cannons 2 | . . . 2 . AOE 2 | . . . 2 . Classes Destroyed 5 | . . 3 2 . Swarmer 6 | . . 2 4 . Grunt 6 | . . 6 . . Artisan 2 | . . . 2 . Subdweller 3 | . . . 3 . Assembled 5 | . . 5 . . Best Kill Streak 5 | . . 5 3 . Combat Bots Only 5 | . . 5 3 . Max Kills in Single Turn 1 | . . 1 1 . Gunslinging . | . . . . . Exploded 1 | . . . 1 . Melee . | . . . . . Uniques/NPCs Destroyed . | . . . . . Combat | -11 -10 -10 -10 -7 -------- Run | Yrd Mat Min Sub Rec Hostile Shots Fired 138 | . . 105 30 3 Missed 37 | . . 28 8 1 Hits 101 | . . 77 22 2 Melee 2 | . . 2 . . Projectile 99 | . . 75 22 2 Critical Strikes 2 | . . 2 . . Part Disruptions 2 | . . 2 . . Damage Taken 1459 | . . 977 472 10 Core 258 | . . 91 157 10 Absorbed by Shields . | . . . . . Core Remaining (%) 100 | 100 . . . . Volleys Fired 129 | . . 67 60 2 Largest 2 | . . 2 2 2 Hottest 120 | . . 120 110 66 Shots Fired 199 | . . 106 90 3 Gun 173 | . . 104 69 . Cannon 20 | . . . 18 2 Launcher 4 | . . . 3 1 Special 2 | . . 2 . . Kinetic 125 | . . 68 54 3 Thermal 55 | . . 19 36 . Explosive . | . . . . . Electromagnetic 19 | . . 19 . . Robot Hit Streak 14 | . . 11 14 . Robot Miss Streak 4 | . . 4 4 . Penetration Max . | . . . . . Secondary Targets 2 | . . 2 . . Max Gunslinging Chain 1 | . . 1 . . Shots Hit Robots 114 | . . 63 51 . Core Hits 49 | . . 26 22 1 Critical Kills . | . . . . . Critical Parts Destroyed 1 | . . . 1 . Critical Strikes 5 | . . . 5 . Burn 3 | . . . 3 . Destroy 2 | . . . 2 . Melee Attacks . | . . . . . Impact . | . . . . . Slashing . | . . . . . Piercing . | . . . . . Sneak Attacks . | . . . . . Combat Hostiles . | . . . . . Follow-up Attacks . | . . . . . Damage Inflicted 1876 | . . 714 1104 58 Guns 1425 | . . 714 711 . Cannons 107 | . . . 107 . Explosions 344 | . . . 286 58 Melee . | . . . . . Ramming . | . . . . . Kinetic 1228 | . . 414 756 58 Thermal 466 | . . 118 348 . Explosive . | . . . . . Electromagnetic 182 | . . 182 . . Impact . | . . . . . Slashing . | . . . . . Piercing . | . . . . . Highest Corruption 1 | . . 1 1 1 Average Corruption 1 | . . 1 1 1 Corruption Purged . | . . . . . Corruption Blocked . | . . . . . Effects 25 | . . 4 18 3 Message Errors 2 | . . . 2 . Matter Fused 8 | . . 2 5 1 Heat Flow Errors 1 | . . . 1 . Energy Discharges 3 | . . . 2 1 Parts Rejected 1 | . . 1 . . Parts Fused 1 | . . . 1 . Data Loss (minor) 5 | . . . 5 . Data Loss (major) 2 | . . . 1 1 Misfires 2 | . . 1 1 . Overload Shots . | . . . . . Overflow Damage . | . . . . . Projectiles . | . . . . . Explosions . | . . . . . Melee . | . . . . . Knockbacks . | . . . . . Impact . | . . . . . Kinetic . | . . . . . Secondary . | . . . . . Self-Inflicted Damage 10 | . . . 10 . Shots 1 | . . . 1 . Rammed . | . . . . . Targets Rammed . | . . . . . Kicked . | . . . . . Crushed . | . . . . . Highest Temperature 184 | . . 184 184 . Average Temperature 77 | . . 78 55 . Received Heat Transfer 740 | . . 635 99 6 Siege Activations . | . . . . . Martial Activations . | . . . . . Shielding Activations . | . . . . . Robots Disrupted . | . . . . . Combat Hostiles . | . . . . . Robots Corrupted . | . . . . . Combat Hostiles . | . . . . . Parts Fried . | . . . . . Impact Corruptions . | . . . . . Robots Melted . | . . . . . Combat Hostiles . | . . . . . Parts Melted . | . . . . . Heat Transferred 1104 | . . 275 829 . Parts Sabotaged . | . . . . . Parts Stolen . | . . . . . Parts Stripped . | . . . . . Power Chain Reactions . | . . . . . Alert | -11 -10 -10 -10 -7 ------- Run | Yrd Mat Min Sub Rec Maximum Alert Level . | . . . . . Low Security (%) 100 | 100 100 100 . 100 Level 1 . | . . . . . Level 2 . | . . . . . Level 3 . | . . . . . Level 4 . | . . . . . Level 5 . | . . . . . High Security . | . . . . . Max Security . | . . . . . Peak Influence 125 | . . 57 . 125 Initial 105 | . . . . 105 Average 16 | . . 14 . 23 Influence Increases 597 | . . 221 329 47 Destroy 0b10 Robot/C 340 | . . 160 180 . Destroy Leader 40 | . . 30 10 . Allied During Kill 19 | . . . 19 . Select Force Hacks 30 | . . . . 30 Destroy Structure 18 | . . 1 . 17 Lose Combat Pursuer 150 | . . 30 120 . Influence Decreases 580 | . . 182 147 251 Entered New Map 137 | . . . 21 116 Time Decay 413 | . . 152 126 135 Lost Part 30 | . . 30 . . Squads Dispatched . | . . . . . Investigation . | . . . . . Extermination . | . . . . . Reinforcement . | . . . . . Assault . | . . . . . Garrison . | . . . . . Intercept . | . . . . . Searches Triggered . | . . . . . Construction Impeded . | . . . . . Haulers Reinforced . | . . . . . Active Scanning Responses . | . . . . . Cargo Convoy Interrupts . | . . . . . Stealth | -11 -10 -10 -10 -7 --------- Run | Yrd Mat Min Sub Rec Distress Signals . | . . . . . Communications Jammed . | . . . . . Distress Signals . | . . . . . Times Spotted 41 | . . 22 18 1 Peak Tracking Total 11 | . . 11 6 1 Tactical Retreats 6 | . . 3 3 . Traps | -11 -10 -10 -10 -7 ------- Run | Yrd Mat Min Sub Rec Traps Triggered 1 | . . . 1 . Indirectly . | . . . . . Trap Hack Attempts . | . . . . . Triggered . | . . . . . Disarmed . | . . . . . Reprogrammed . | . . . . . Reused . | . . . . . Traps Extracted . | . . . . . Installed . | . . . . . Triggered . | . . . . . Most Traps Carried 1 | . . . 1 1 Machines | -11 -10 -10 -10 -7 ---------- Run | Yrd Mat Min Sub Rec Machines Disabled 3 | . . . 3 . Max in Single Turn 1 | . . . 1 . Machines Repaired . | . . . . . Machines Dismantled . | . . . . . Machines Sabotaged . | . . . . . Overloaded Fab Kills . | . . . . . Hacking | -11 -10 -10 -10 -7 --------- Run | Yrd Mat Min Sub Rec Machines Accessed 4 | . . 1 2 1 Terminals . | . . . . . Fabricators . | . . . . . Repair Stations . | . . . . . Recycling Units 1 | . . . . 1 Scanalyzers . | . . . . . Garrison Access . | . . . . . Total Hacks 9 | . . 1 6 2 Successful 9 | . . 1 6 2 Failed . | . . . . . Catastrophic . | . . . . . Database Lockouts . | . . . . . Manual 1 | . . . . 1 Terminals . | . . . . . Fabricators . | . . . . . Repair Stations . | . . . . . Recycling Units 2 | . . . . 2 Scanalyzers . | . . . . . Garrison Access . | . . . . . Terminal Hacks 7 | . . 1 6 . Record 5 | . . . 5 . Open Door 1 | . . 1 . . Proto ID Catalog 1 | . . . 1 . Fabricator Hacks . | . . . . . Repair Station Hacks . | . . . . . Recycling Unit Hacks 1 | . . . . 1 Report Inventory 1 | . . . . 1 Scanalyzer . | . . . . . Garrison Access Hacks . | . . . . . Unauthorized Hacks 1 | . . . . 1 Terminals . | . . . . . Fabricators . | . . . . . Repair Stations . | . . . . . Recycling Units 1 | . . . . 1 Tunnel 1 | . . . . 1 Scanalyzers . | . . . . . Garrison Access . | . . . . . Data Cores Recovered . | . . . . . Used . | . . . . . Hacking Detections . | . . . . . Full Trace Events . | . . . . . Feedback Events . | . . . . . Feedback Blocked . | . . . . . Robot Schematics Acquired . | . . . . . Robots Built . | . . . . . Authchips . | . . . . . Time . | . . . . . Total Robot Build Rating . | . . . . . Part Schematics Acquired . | . . . . . Parts Built . | . . . . . Authchips . | . . . . . Time . | . . . . . Total Part Build Rating . | . . . . . Part Studies Acquired . | . . . . . Parts Repaired . | . . . . . Time . | . . . . . Parts Recycled . | . . . . . Recycled Matter . | . . . . . Retrieved Matter . | . . . . . Retrieved Components . | . . . . . Parts Scanalyzed . | . . . . . Part Schematics Acquired . | . . . . . Parts Damaged . | . . . . . Bothacking | -11 -10 -10 -10 -7 ------------ Run | Yrd Mat Min Sub Rec Used RIF Installer . | . . . . . Robots Hacked . | . . . . . Non-combat . | . . . . . Combat . | . . . . . Robot Hacks Applied . | . . . . . Relay Couplers Released . | . . . . . Fabnet Peak Effective % . | . . . . . Robots Rewired . | . . . . . Allies Hacked . | . . . . . Hacks Repelled . | . . . . . Allies | -11 -10 -10 -10 -7 -------- Run | Yrd Mat Min Sub Rec Total Allies 2 | . . 1 1 . Largest Group 1 | . . . 1 1 Highest-Rated Group 77 | . . . 77 56 Highest-Rated Ally 77 | . . . 77 56 Total Orders 3 | . . 2 . 1 ROAM 1 | . . . . 1 RETURN 2 | . . 2 . . Ally Attacks 34 | . . 4 30 . Total Damage 1013 | . . 21 992 . Kills 11 | . . 1 10 . Allies Corrupted . | . . . . . Allies Melted . | . . . . . Intel | -11 -10 -10 -10 -7 ------- Run | Yrd Mat Min Sub Rec Active Infowar (turns) 686 | . . . 686 . Optics 686 | . . . 686 . Robot Analysis Total . | . . . . . Derelict Logs Recovered 2 | . . 1 1 . Drone Launches 8 | . . 5 3 . Drone Recoveries 8 | . . 5 3 . Exploration | -11 -10 -10 -10 -7 ------------- Run | Yrd Mat Min Sub Rec Turns Passed 5315 | 76 161 736 3548 794 Spaces Moved 2616 | 66 134 403 1945 68 Core 8 | 8 . . . . Treads 3 | 2 . 1 . . Legs . | . . . . . Wheels 2605 | 56 134 402 1945 68 Hover . | . . . . . Flight . | . . . . . Fastest Speed 50 | 50 100 110 110 130 Average Speed 136 | 95 112 115 144 130 Slowest Speed 240 | 160 130 240 215 130 Overloaded Moves . | . . . . . Propulsion Burnouts . | . . . . . Robots Hopped 3 | . . . . 3 Potential Cave-ins . | . . . . . Cave-ins Triggered . | . . . . . Exploration Rate (%) 41 | 4 28 65 93 18 Regions Visited 4 Branch Regions 3 Pre-discovered Areas 4 | . . 1 2 1 Known Exits Taken . | . . . . . Unknown Exits Taken 4 | 1 1 1 1 . Scrap Searched 7 | . . . 7 . Spaces Dug 21 | . . . . 21 Terrain Destroyed 84 | . . 1 62 21 Melee . | . . . . . Projectile 2 | . . 1 1 . AOE 82 | . . . 61 21 Terrain Rammed . | . . . . . Walls Destroyed . | . . . . . Machines Disabled . | . . . . . Actions | -11 -10 -10 -10 -7 --------- Run | Yrd Mat Min Sub Rec Total 4156 | 75 144 569 2601 767 Wait 1280 | . . 79 503 698 Move 2606 | 65 133 402 1944 62 Hop 3 | . . . . 3 Pick Up 53 | 4 6 7 36 . Fast Attach 15 | 6 2 2 5 . Attach 12 | . . 7 5 . Detach 2 | . . . 2 . Swap 19 | . 1 4 12 2 Drop 37 | . 2 1 34 . Fire 129 | . . 67 60 2 Melee . | . . . . . Ram . | . . . . . Kick . | . . . . . Crush . | . . . . . Escape Stasis . | . . . . . Rewire . | . . . . . Trap . | . . . . . Miscellaneous . | . . . . . Route ------- -11/Scrapyard -10/Materials -10/Mines (discovered 2 exits: [*Mat] / *Sub) -10/Subcaves (discovered 3 exits: [*Mat x2] / *Rec) -7/Recycling History --------- Turn | Location | Event 4 | -11/Scrapyard | Discovered new exit (range 16) 77 | -11/Scrapyard | Entered Materials 211 | -10/Materials | Discovered new exit (range 16) 238 | -10/Materials | Entered Mines 276 | -10/Mines | Learned location of Zion (-6) 306 | -10/Mines | Build established: Mutant 494 | -10/Mines | Assembled infested the area 499 | -10/Mines | Assisted by a Guerilla fighting off Assembled 610 | -10/Mines | Lost 4 parts (1n1u2w) 619 | -10/Mines | Found a Scrap Suit stashed away for nefarious purposes 621 | -10/Mines | Found Scrap Suit 745 | -10/Mines | Found the Drone Emporium 749 | -10/Mines | Found Prototype Device 750 | -10/Mines | Identified Splice Drone Bay 868 | -10/Mines | Discovered new exit (range 9) 882 | -10/Mines | Discovered new exit (range 7) 974 | -10/Mines | Entered Subcaves 1054 | -10/Subcaves | Discovered new exit (range 10) 1069 | -10/Subcaves | A swath of the cavern ceiling suddenly collapsed 1128 | -10/Subcaves | Core integrity fell below 50% 1271 | -10/Subcaves | A swath of the cavern ceiling suddenly collapsed 1328 | -10/Subcaves | Shifting Twisted Machinery released Scrap Shield 1334 | -10/Subcaves | Shifting Twisted Machinery released Flamer 1562 | -10/Subcaves | Discovered new exit (range 6) 1752 | -10/Subcaves | Visited 4L-MR0's lab 1923 | -10/Subcaves | Found Tower Shield 2576 | -10/Subcaves | Visited Clippyterm 2581 | -10/Subcaves | Learned location of Extension (-4) 2581 | -10/Subcaves | Learned Factory emergency access door positions 2611 | -10/Subcaves | Botcube activated 2645 | -10/Subcaves | Botcube completed mutation into wheeled form, armed with 4 guns. 2951 | -10/Subcaves | Core integrity fell below 20% 3204 | -10/Subcaves | Build established: Scavenger-Mutant 4206 | -10/Subcaves | Shifting Twisted Machinery released Battle Cannon 4207 | -10/Subcaves | Shifting Twisted Machinery released Sub. Laser 4263 | -10/Subcaves | Shifting Twisted Machinery released Sub. Monowheel 4279 | -10/Subcaves | Shifting Twisted Machinery released Battle Rifle 4501 | -10/Subcaves | Discovered new exit (range 10) 4522 | -10/Subcaves | Entered Recycling 4522 | -7/Recycling | Accompanied by 1 ally 4523 | -7/Recycling | Met a Zionite searching for Scraptown 4570 | -7/Recycling | Build established: Mutant 5316 | -7/Recycling | Destroyed by Y-54 Guardian with Gatling Laser Last Messages --------------- 04524_ CD-TY3(z): "I've heard great things about that place, but almost no one seems to know where to find it, only that you access it somewhere from Recycling here." 04525_ CD-TY3(z): "Anyway I've been here searching too long already, time to slink back to the caves before I'm caught. You'd best do the same." 04559_ Connecting with Recycling Unit... 04559_ Current location identified: Recycling >>Recycling(Report) Matter reserves: 0 Inventory: Lightning Gun (70%) Adv. Terrain Scan Processor (66%) >>Force(Tunnel) DISCOVERED[-5/Factory] 04560_ CD-TY3(z) destroyed. 04560_ R-06 Scavenger collects Mak. Leg. 04640_ System corrupted: Matter fused (-9). 04917_ System corrupted: Energy discharge (-42). 05279_ System corrupted: Substantial component data lost. 05316_ Y-54 Guardian springs to life. Map ----- +----------------------------------------------------+ | ?????????????????????????????????????????????????? | | ?????????????????????????????????????????????????? | | ?????????????????????????????????????????????????? | | ????????????????? ?????????????????????????????? | | ????????????????# ?????????????????????????????? | | ????????????????# ?????????????????????????????? | | ????????????????# ?????????????????????????????? | | ????????????????# #????????????????????????????? | | ????????????????# #????????????????????????????? | | ????????????????# #????????????????????????????? | | ????????????????# #????????????????????????????? | | ???????????""???# #????????????????????????????? | | ???????????"""??# #??##########????????????????? | | #######?????"""?# #??# #????????????????? | | #?????? #% #??# #????????????????? | | ##?????? # #### #????????????????? | | ???????? + ""## #????????????????? | | #?????????# Y"## ##???????????????? | | #?????????# ""## #???????????????? | | #?????????# #### #????????????????? | | #?????????# #??# #????????????????? | | #????????## ##?# #????; ?????????? | | #+############## #####/#######;;Y;;;?????????? | | u M "??????? | | T??????? | | @ ??????? | | ################ ############;;;;;;;; ???????? | | ???????????????#######???????????????????????????? | | | | | | | | | | | | | | | | | | | | | | | | | | | | | | | | | | | | | | | | | | | | | +----------------------------------------------------+ Best States ------------- Heat Dissipation 25 Coolant Potential 50 Energy Generation 10 Energy Capacity 250 Matter Stores 349 Matter Capacity 400 Sight Range 21 Terrain Scan Density 10 Armor Coverage 800 Evasion (%) 40 Recoil Reduction 2 Item Schematics ----------------- None Robot Schematics ------------------ None Fabricated ------------ Nothing Repaired ---------- Nothing Studied --------- None Alien Tech Used ----------------- None Achievements -------------- None Challenges ------------ None Game ------ Seed PiercingGaussAccelerator Manual? 0 Play Time 00:25:43 Cumulative 1262.4 hours Start 2026.01.19 @ 17:49:30 End 2026.01.19 @ 18:14:57 Sessions 3 Manual Loads 0 Difficulty Rogue Special Mode None Game No. 432 Rogue 427 Adventurer 4 Explorer 1 Win Type - Total 28 Types 15/5/1/2/0/1/1/0/2/1 Lore% 97 Gallery% 96 Achievement% 83 Wizard Run 0 Options --------- Layout 0 ASCII 0 Keyboard 0 Movement Numpad Keybinds 0 Fullscreen 2 Font 18/SmallcapsGlow Map View 76x50 Zoom Use 0% Tactical HUD 1 Map Filters NONE Filters NONE Steam 1 RUN: 71d176f0-a2ea-4a96-9376-fd8934e82826